{"text_format":"3","workbook":"xlsx","n_sheets":4,"sheets":["Formularz oferty","Dane wykresu","Zestawienie kosztów","Podsumowanie kosztów oferty"],"not_rendered":{"charts":1,"images":2,"defined_names":11},"read":"whole","date_system":"1900"}

{"sheet":"Formularz oferty","index":0,"n_rows":21,"n_cols":6,"rows_kept":21,"merged":[[0,1,0,4],[1,1,1,2],[7,1,8,1],[7,2,8,2],[10,1,10,5],[12,1,12,5],[14,1,14,5],[15,1,15,2],[15,4,15,5],[16,1,16,2],[16,4,16,5],[18,1,18,5],[19,1,19,2],[19,4,19,5],[20,1,20,2],[20,4,20,5]]}
[null,"Formularz oferty budowlanej"]
[null,"Informacje o właścicielu",null,null,"Informacje o wykonawcy"]
[null,"Imię i nazwisko","W tej komórce wprowadź imię i nazwisko właściciela",null,"Firma","W tej komórce wprowadź nazwę firmy wykonawcy"]
[null,"Adres","W tej komórce wprowadź adres właściciela",null,"Imię i nazwisko","W tej komórce wprowadź imię i nazwisko przedstawiciela wykonawcy"]
[null,"Miasto, kod pocztowy","W tej komórce wprowadź miasto i kod pocztowy właściciela",null,"Adres","W tej komórce wprowadź adres wykonawcy"]
[null,"Telefon","W tej komórce wprowadź numer telefonu właściciela",null,"Miasto, kod pocztowy","W tej komórce wprowadź miasto i kod pocztowy wykonawcy"]
[null,"E-mail","W tej komórce wprowadź adres e-mail właściciela",null,"Telefon","W tej komórce wprowadź numer telefonu wykonawcy"]
[null,"Nazwa projektu","W tej komórce wprowadź nazwę projektu",null,"E-mail","W tej komórce wprowadź adres e-mail wykonawcy "]
[{"$nulls":4},"Data ukończenia","W tej komórce wprowadź datę ukończenia"]
[null,"Zakres prac"]
[null,"Tutaj znajdziesz zakres pracy projektu. Wpisz wszystkie specyfikacje, których potrzebujesz. \n\nPrzykładowy tekst: To będzie próbny projekt budowy dużego zestawu schodów. Do skonstruowania ramy użyjemy tylko drewna o wymiarach 2 x 4 i 2 x 8, a także wsporników legarów. Schody zostaną wycięte z materiału o wymiarze 2 x 4. Zostaną użyte śruby o długości nie mniejszej niż 5 cm.  Wszystkie gwoździe będą o długości nie mniejszej niż 7,5 cm. Projekt musi utrzymać minimalną wagę 226 kg na stopień. Schody będą na poziomie domu. Stopień będzie przymocowany do domu. Wykonawca zajmie się sprzątaniem."]
[null,"Nieuwzględnione"]
[null,"Tutaj znajdziesz szczegóły projektu, które nie są uwzględnione. Wpisz wszystko, co nie jest uwzględnione w tej ofercie. \n\nPrzykładowy tekst: Nie zostaną zainstalowane żadne szyny. Nawierzchnia musi być wstępnie przygotowana przez właściciela. Pomalowanie schodów należy do właściciela."]
[null,"Propozycja firmy"]
[null,"Tutaj znajdziesz propozycję firmy. Wpisz ogólny zarys propozycji, w tym informacje o tym, kto proponuje pracę, oczekiwaną datę ukończenia i koszt propozycji.\n\nPrzykładowy tekst: Firma (nazwa firmy), proponuje powyższy zakres pracy, który ma zostać ukończony do dnia (data ukończenia), za (łączną kwotę)."]
[]
[null,"Przesłane przez (przedstawiciela firmy)",null,null,"Data"]
[null,"Akceptacja właściciela"]
[null,"Akceptacja właściciela jest tutaj. Wpisz imię i nazwisko właściciela w oświadczeniu potwierdzenia warunków, zawierającym datę ukończenia i łączną kwotę określoną w propozycji firmy. \n\nPrzykładowy tekst: Ja, (imię i nazwisko właściciela), akceptuję powyższy zakres pracy, który ma zostać ukończony do dnia (data ukończenia), za (łączną kwotę)."]
[]
[null,"Przesłane przez (właściciela domu lub autoryzowanego przedstawiciela)",null,null,"Data"]

{"sheet":"Dane wykresu","index":1,"n_rows":7,"n_cols":3,"rows_kept":7,"hidden":true}
[]
[null,null,"Suma"]
[null,{"$f":"INDEX(BidItems[#Data],MATCH(1,BidItems[Klasyfikacja kosztów],0),2)","v":"Koszt pracy"},{"$f":"INDEX(BidItems[#Data],MATCH(1,BidItems[Klasyfikacja kosztów],0),4)","v":200}]
[null,{"$f":"INDEX(BidItems[#Data],MATCH(2,BidItems[Klasyfikacja kosztów],0),2)","v":"2 x 4 x 10 — drewno"},{"$f":"INDEX(BidItems[#Data],MATCH(2,BidItems[Klasyfikacja kosztów],0),4)","v":99.39999999999999}]
[null,{"$f":"INDEX(BidItems[#Data],MATCH(3,BidItems[Klasyfikacja kosztów],0),2)","v":"Wsporniki legarów"},{"$f":"INDEX(BidItems[#Data],MATCH(3,BidItems[Klasyfikacja kosztów],0),4)","v":74.7}]
[null,{"$f":"INDEX(BidItems[#Data],MATCH(4,BidItems[Klasyfikacja kosztów],0),2)","v":"2 x 8 x 10 — drewno"},{"$f":"INDEX(BidItems[#Data],MATCH(4,BidItems[Klasyfikacja kosztów],0),4)","v":33.75}]
[null,{"$f":"INDEX(BidItems[#Data],MATCH(5,BidItems[Klasyfikacja kosztów],0),2)","v":"Para rękawic skórzanych"},{"$f":"INDEX(BidItems[#Data],MATCH(5,BidItems[Klasyfikacja kosztów],0),4)","v":15.5}]

{"sheet":"Zestawienie kosztów","index":2,"n_rows":14,"n_cols":6,"rows_kept":14,"merged":[[0,1,0,4],[1,1,1,4]]}
[null,"Zestawienie kosztów",{"$nulls":3}," "]
[null,"Lista materiałów i kosztów"]
[null,"Ilość","Opis","Koszt","Suma","Klasyfikacja kosztów"]
[null,5,"2 x 8 x 10 — drewno",{"v":6.75,"d":"6.75 zł"},{"$f":"IFERROR(BidItems[[#This Row],[Koszt]]*BidItems[[#This Row],[Ilość]], \"\")","v":{"v":33.75,"d":"33.75 zł"}},{"$f":"_xlfn.RANK.EQ(BidItems[[#This Row],[Suma]],BidItems[Suma])","v":4}]
[null,20,"2 x 4 x 10 — drewno",{"v":4.97,"d":"4.97 zł"},{"$f":"IFERROR(BidItems[[#This Row],[Koszt]]*BidItems[[#This Row],[Ilość]], \"\")","v":{"v":99.39999999999999,"d":"99.40 zł"}},{"$f":"_xlfn.RANK.EQ(BidItems[[#This Row],[Suma]],BidItems[Suma])","v":2}]
[null,30,"Wsporniki legarów",{"v":2.49,"d":"2.49 zł"},{"$f":"IFERROR(BidItems[[#This Row],[Koszt]]*BidItems[[#This Row],[Ilość]], \"\")","v":{"v":74.7,"d":"74.70 zł"}},{"$f":"_xlfn.RANK.EQ(BidItems[[#This Row],[Suma]],BidItems[Suma])","v":3}]
[null,2,"Pudełko śrub długości 5 cm",{"v":6.67,"d":"6.67 zł"},{"$f":"IFERROR(BidItems[[#This Row],[Koszt]]*BidItems[[#This Row],[Ilość]], \"\")","v":{"v":13.34,"d":"13.34 zł"}},{"$f":"_xlfn.RANK.EQ(BidItems[[#This Row],[Suma]],BidItems[Suma])","v":6}]
[null,2,"Pudełko gwoździ długości 7,5 cm",{"v":3.25,"d":"3.25 zł"},{"$f":"IFERROR(BidItems[[#This Row],[Koszt]]*BidItems[[#This Row],[Ilość]], \"\")","v":{"v":6.5,"d":"6.50 zł"}},{"$f":"_xlfn.RANK.EQ(BidItems[[#This Row],[Suma]],BidItems[Suma])","v":7}]
[null,2,"Para rękawic skórzanych",{"v":7.75,"d":"7.75 zł"},{"$f":"IFERROR(BidItems[[#This Row],[Koszt]]*BidItems[[#This Row],[Ilość]], \"\")","v":{"v":15.5,"d":"15.50 zł"}},{"$f":"_xlfn.RANK.EQ(BidItems[[#This Row],[Suma]],BidItems[Suma])","v":5}]
[null,2,"Koszt pracy",{"v":100,"d":"100.00 zł"},{"$f":"IFERROR(BidItems[[#This Row],[Koszt]]*BidItems[[#This Row],[Ilość]], \"\")","v":{"v":200,"d":"200.00 zł"}},{"$f":"_xlfn.RANK.EQ(BidItems[[#This Row],[Suma]],BidItems[Suma])","v":1}]
[4,null,null,"Suma częściowa",{"$f":"SUBTOTAL(109,BidItems[Suma])","v":{"v":443.18999999999994,"d":"443.19 zł"}}]
[5,null,null,"Stawka podatku",{"v":0.075,"d":"7.50%"}]
[{"$nulls":3},"Podatek",{"$f":"IFERROR(Stawka_podatku*BidItems[[#Totals],[Suma]], \"\")","v":{"v":33.23924999999999,"d":"33.24 zł"}}]
[{"$nulls":3},"Suma końcowa",{"$f":"IFERROR(Podatek+BidItems[[#Totals],[Suma]], \"\")","v":{"v":476.4292499999999,"d":"476.43 zł"}}]

{"sheet":"Podsumowanie kosztów oferty","index":3,"n_rows":3,"n_cols":4,"rows_kept":3}
[null,"Podsumowanie kosztów oferty"]
[null,"Zestawienie materiałów i kosztów",null,"Uwagi"]
[null,"Wykres kołowy przedstawiający 5 największych kosztów na materiał. Dane są oparte na tabeli Elementy oferty w arkuszu zestawienia kosztów",null,"W tej komórce wprowadź uwagi."]